Cogmind - Beta 16 @@@ ROGUE MODE // 2025.11.03 @ 00:57:10 Player: CheifClapdad Result: Destroyed by as-06315 with Assembled Blade Performance ------------- Evolutions (0) 0 Regions Visited (2) 400 Robots Destroyed (28) 140 Value Destroyed (452) 452 Prototype IDs (0) 0 Alien Tech Used (0) 0 Bonus (0) 0 TOTAL SCORE: 992 Bonus ------- None Cogmind --------- Core Integrity 0/250 Matter 481/500 Energy 99/100 System Corruption 1% Temperature Cool (0) Movement Rolling (115) Ox1 Location -10/Mines Parts ------- > --- POWER (1) -------- (None) > --- PROPULSION (2) --- Light Treads Compact Wheel > --- UTILITY (2) ------ Large Storage Unit High-capacity Matter Pod > --- WEAPON (2) ------- Light Assault Rifle Light Assault Rifle > --- INVENTORY (15) --- Ion Engine Ion Engine Wheel Compact Wheel Compact Wheel Medium Matter Pod (100) Targeting Computer Targeting Computer Power Shielding Power Shielding Medium Armor Plating Medium Armor Plating Assault Rifle Assault Rifle Peak State ------------ > --- POWER ------------ Light Ion Engine > --- PROPULSION ------- Light Treads Wheel > --- UTILITY ---------- Small Storage Unit Seismic Detector > --- WEAPON ----------- Medium Laser Assault Rifle > --- INVENTORY -------- Ion Engine Light Treads Wheel Cooling System Medium Armor Plating Medium Armor Plating Medium Armor Plating [Rating: 8] Favorites ----------- Power Light Ion Engine Engine Light Ion Engine Propulsion Light Treads Treads Light Treads Wheel Wheel Utility Large Storage Unit Device Seismic Detector Storage Large Storage Unit Weapon Light Assault Rifle Energy Gun Medium Laser Ballistic Gun Light Assault Rifle Build | -11 -10 -10 ------- Run | Yrd Mat Min Slots Evolved . | . . . Power . | . . . Propulsion . | . . . Utility . | . . . Weapon . | . . . Parts Attached 17 | 7 10 . Power 2 | 1 1 . Engine 2 | 1 1 . Core . | . . . Reactor . | . . . Propulsion 7 | 2 5 . Treads 2 | 1 1 . Leg . | . . . Wheel 5 | 1 4 . Hover . | . . . Flight . | . . . Utility 4 | 2 2 . Device 1 | 1 . . Storage 3 | 1 2 . Processor . | . . . Hackware . | . . . Protection . | . . . Artifact . | . . . Weapon 4 | 2 2 . Energy Gun 1 | 1 . . Energy Cannon . | . . . Ballistic Gun 3 | 1 2 . Ballistic Cannon . | . . . Launcher . | . . . Special Weapon . | . . . Impact Weapon . | . . . Slashing Weapon . | . . . Piercing Weapon . | . . . Special Melee Weapon . | . . . Unidentified Prototypes . | . . . Parts Lost 5 | . 4 1 Power 2 | . 1 1 Propulsion 2 | . 2 . Utility 1 | . 1 . Weapon . | . . . Highest Loss Streak 4 | . 4 1 To Critical Strikes . | . . . Average Backups 8 | 2 9 14 Power 1 | . 1 2 Propulsion 1 | 1 1 3 Utility 4 | . 4 7 Weapon 1 | . 1 2 Tool/Special . | . . . Unused Backups 15 | . 3 12 Power 2 | . . 2 Propulsion 2 | . . 2 Utility 10 | . 3 7 Weapon 1 | . . 1 Tool/Special . | . . . Average Slot Usage (%) 91 | . 91 92 Engine 6 | . 6 7 Treads 13 | . 13 14 Wheel 14 | . 14 14 Device 6 | . 6 . Storage 21 | . 21 28 Energy Gun 3 | . 3 . Ballistic Gun 24 | . 24 28 Peak Build Rating 8 | 7 8 8 Average Rating 7 | 5 7 7 On Entrance 5 | . 7 8 Avg Prop Armor Cover (%) 12 | 12 12 . Naked Turns . | . . . Heaviest Build 29 | 13 29 26 Greatest Support 20 | 20 20 16 Greatest Overweight (x) 2 | 1 2 1 Average Overweight (x) 1 | . 1 1 Largest Inventory Capacity 15 | 8 15 15 Average Capacity 11 | 7 12 15 Most Carried 15 | 3 15 14 Average Carried 8 | 2 9 14 Final Capacity 15 | 8 15 15 Final Carried 14 | 3 14 14 Class Distribution -------------------- 82% | Mutant 17% | Scavenger-Mutant Dominant Class ---------------- Mutant | -10/Materials Mutant | -10/Mines Resources | -11 -10 -10 ----------- Run | Yrd Mat Min Matter Collected 873 | 321 552 . Remotely . | . . . Salvage Created 1100 | 202 898 . Parts 65 | 10 55 . Haulers Intercepted . | . . . Recyclers Shooed 7 | 1 6 . Parts Field Recycled . | . . . Retrieved Matter . | . . . Parts Self-Destructed . | . . . Prevented . | . . . Parts Restored . | . . . Kills | -11 -10 -10 ------- Run | Yrd Mat Min Combat Hostiles Destroyed 14 | . 14 . Guns 14 | . 14 . Classes Destroyed 6 | 3 3 . Worker 3 | 2 1 . Tunneler 4 | 3 1 . Recycler 6 | 1 5 . Watcher 1 | . 1 . Swarmer 5 | . 5 . Grunt 9 | . 9 . Best Kill Streak 6 | 6 6 . Combat Bots Only 4 | . 4 . Max Kills in Single Turn 2 | 1 2 . Gunslinging 1 | . 1 . Exploded . | . . . Melee . | . . . Uniques/NPCs Destroyed . | . . . Combat | -11 -10 -10 -------- Run | Yrd Mat Min Hostile Shots Fired 113 | . 98 15 Missed 25 | . 24 1 Hits 88 | . 74 14 Melee 1 | . . 1 Projectile 87 | . 74 13 Damage Taken 977 | . 761 216 Core 266 | . 155 111 Absorbed by Shields . | . . . Core Remaining (%) 100 | 100 . . Volleys Fired 105 | 17 81 7 Largest 2 | 2 2 2 Hottest 70 | 70 70 40 Shots Fired 211 | 34 163 14 Gun 211 | 34 163 14 Cannon . | . . . Launcher . | . . . Special . | . . . Kinetic 180 | 17 149 14 Thermal 31 | 17 14 . Explosive . | . . . Electromagnetic . | . . . Robot Hit Streak 10 | 6 10 10 Robot Miss Streak 6 | 3 6 1 Penetration Max . | . . . Secondary Targets 4 | . 4 . Max Gunslinging Chain 1 | . 1 . Shots Hit Robots 133 | 20 100 13 Core Hits 52 | 6 43 3 Critical Kills 1 | . 1 . Critical Parts Destroyed 1 | 1 . . Critical Strikes 2 | 1 1 . Destroy 2 | 1 1 . Melee Attacks . | . . . Impact . | . . . Slashing . | . . . Piercing . | . . . Sneak Attacks . | . . . Combat Hostiles . | . . . Follow-up Attacks . | . . . Damage Inflicted 1273 | 242 928 103 Guns 1273 | 242 928 103 Cannons . | . . . Explosions . | . . . Melee . | . . . Ramming . | . . . Kinetic 1076 | 133 840 103 Thermal 197 | 109 88 . Explosive . | . . . Electromagnetic . | . . . Impact . | . . . Slashing . | . . . Piercing . | . . . Highest Corruption 1 | . 1 1 Average Corruption 1 | . 1 1 Corruption Purged . | . . . Corruption Blocked . | . . . Effects 6 | . 6 . Message Errors 1 | . 1 . Matter Fused 1 | . 1 . Heat Flow Errors 1 | . 1 . Energy Discharges 1 | . 1 . Misfires 1 | . 1 . Alerts 1 | . 1 . Overload Shots . | . . . Overflow Damage . | . . . Projectiles . | . . . Explosions . | . . . Melee . | . . . Knockbacks . | . . . Impact . | . . . Kinetic . | . . . Secondary . | . . . Self-Inflicted Damage . | . . . Shots . | . . . Rammed . | . . . Targets Rammed . | . . . Kicked . | . . . Crushed . | . . . Highest Temperature 186 | 88 186 25 Average Temperature 50 | 45 57 11 Received Heat Transfer 393 | . 288 105 Siege Activations . | . . . Martial Activations . | . . . Shielding Activations . | . . . Robots Disrupted . | . . . Combat Hostiles . | . . . Robots Corrupted . | . . . Combat Hostiles . | . . . Parts Fried . | . . . Impact Corruptions . | . . . Robots Melted . | . . . Combat Hostiles . | . . . Parts Melted . | . . . Heat Transferred 592 | 333 259 . Parts Sabotaged . | . . . Parts Stolen . | . . . Parts Stripped . | . . . Power Chain Reactions . | . . . Alert | -11 -10 -10 ------- Run | Yrd Mat Min Maximum Alert Level . | . . . Low Security (%) 100 | 100 100 100 Level 1 . | . . . Level 2 . | . . . Level 3 . | . . . Level 4 . | . . . Level 5 . | . . . High Security . | . . . Max Security . | . . . Peak Influence 145 | 15 145 9 Initial 9 | . . 9 Average 44 | 1 53 2 Influence Increases 433 | 30 403 . Destroy 0b10 Robot/C 280 | . 280 . Destroy 0b10 Robot/NC 70 | 30 40 . Destroy Leader 62 | . 62 . Successful Hack 21 | . 21 . Influence Decreases 433 | 30 378 25 Entered New Map 16 | . . 16 Time Decay 368 | 30 338 . Lost Part 49 | . 40 9 Squads Dispatched 3 | . 3 . Investigation 2 | . 2 . Extermination . | . . . Reinforcement 1 | . 1 . Assault . | . . . Garrison . | . . . Intercept . | . . . Searches Triggered . | . . . Construction Impeded . | . . . Haulers Reinforced . | . . . Active Scanning Responses . | . . . Cargo Convoy Interrupts . | . . . Stealth | -11 -10 -10 --------- Run | Yrd Mat Min Distress Signals 2 | . 2 . Communications Jammed . | . . . Distress Signals . | . . . Times Spotted 28 | . 22 6 Peak Tracking Total 17 | . 6 17 Tactical Retreats . | . . . Traps | -11 -10 -10 ------- Run | Yrd Mat Min Traps Triggered 1 | . 1 . Indirectly . | . . . Trap Hack Attempts . | . . . Triggered . | . . . Disarmed . | . . . Reprogrammed . | . . . Reused . | . . . Traps Extracted . | . . . Installed . | . . . Triggered . | . . . Machines | -11 -10 -10 ---------- Run | Yrd Mat Min Machines Disabled . | . . . Max in Single Turn . | . . . Machines Repaired . | . . . Machines Dismantled . | . . . Machines Sabotaged . | . . . Overloaded Fab Kills . | . . . Hacking | -11 -10 -10 --------- Run | Yrd Mat Min Machines Accessed 4 | . 4 . Terminals 3 | . 3 . Fabricators . | . . . Repair Stations . | . . . Recycling Units 1 | . 1 . Scanalyzers . | . . . Garrison Access . | . . . Total Hacks 16 | . 16 . Successful 5 | . 5 . Failed 11 | . 11 . Catastrophic . | . . . Database Lockouts . | . . . Manual 16 | . 16 . Terminals 14 | . 14 . Fabricators . | . . . Repair Stations . | . . . Recycling Units 2 | . 2 . Scanalyzers . | . . . Garrison Access . | . . . Terminal Hacks 2 | . 2 . Robot Analysis 1 | . 1 . Branch Access Points 1 | . 1 . Fabricator Hacks . | . . . Repair Station Hacks . | . . . Recycling Unit Hacks . | . . . Scanalyzer . | . . . Garrison Access Hacks . | . . . Unauthorized Hacks 3 | . 3 . Terminals 3 | . 3 . Botnet 3 | . 3 . Fabricators . | . . . Repair Stations . | . . . Recycling Units . | . . . Scanalyzers . | . . . Garrison Access . | . . . Data Cores Recovered . | . . . Used . | . . . Hacking Detections 2 | . 2 . Full Trace Events 2 | . 2 . Feedback Events 1 | . 1 . Corruption 1 | . 1 . Feedback Blocked . | . . . Robot Schematics Acquired . | . . . Robots Built . | . . . Authchips . | . . . Time . | . . . Total Robot Build Rating . | . . . Part Schematics Acquired . | . . . Parts Built . | . . . Authchips . | . . . Time . | . . . Total Part Build Rating . | . . . Part Studies Acquired . | . . . Parts Repaired . | . . . Time . | . . . Parts Recycled . | . . . Recycled Matter . | . . . Retrieved Matter . | . . . Retrieved Components . | . . . Parts Scanalyzed . | . . . Part Schematics Acquired . | . . . Parts Damaged . | . . . Bothacking | -11 -10 -10 ------------ Run | Yrd Mat Min Used RIF Installer . | . . . Robots Hacked . | . . . Non-combat . | . . . Combat . | . . . Robot Hacks Applied . | . . . Relay Couplers Released . | . . . Fabnet Peak Effective % . | . . . Robots Rewired . | . . . Allies Hacked . | . . . Hacks Repelled . | . . . Allies | -11 -10 -10 -------- Run | Yrd Mat Min Total Allies . | . . . Largest Group . | . . . Highest-Rated Group . | . . . Highest-Rated Ally . | . . . Total Orders . | . . . Ally Attacks . | . . . Total Damage . | . . . Kills . | . . . Allies Corrupted . | . . . Allies Melted . | . . . Intel | -11 -10 -10 ------- Run | Yrd Mat Min Active Infowar (turns) 520 | 35 485 . Seismic 520 | 35 485 . Robot Analysis Total 1 | . 1 . Derelict Logs Recovered . | . . . Drone Launches . | . . . Drone Recoveries . | . . . Exploration | -11 -10 -10 ------------- Run | Yrd Mat Min Turns Passed 1317 | 207 1091 19 Spaces Moved 815 | 141 673 1 Core 4 | 4 . . Treads 125 | 17 108 . Legs . | . . . Wheels 686 | 120 565 1 Hover . | . . . Flight . | . . . Fastest Speed 50 | 50 80 115 Average Speed 120 | 101 124 115 Slowest Speed 240 | 160 240 115 Overloaded Moves . | . . . Propulsion Burnouts . | . . . Robots Hopped . | . . . Potential Cave-ins . | . . . Cave-ins Triggered . | . . . Exploration Rate (%) 25 | 6 67 3 Regions Visited 2 Branch Regions 1 Pre-discovered Areas . | . . . Known Exits Taken 1 | . 1 . Unknown Exits Taken 1 | 1 . . Scrap Searched . | . . . Spaces Dug . | . . . Terrain Destroyed . | . . . Melee . | . . . Projectile . | . . . AOE . | . . . Terrain Rammed . | . . . Walls Destroyed . | . . . Machines Disabled . | . . . Actions | -11 -10 -10 --------- Run | Yrd Mat Min Total 970 | 167 795 8 Wait 7 | . 7 . Move 813 | 140 672 1 Hop . | . . . Pick Up 20 | 3 17 . Fast Attach 8 | 7 1 . Attach 4 | . 4 . Detach . | . . . Swap 5 | . 5 . Drop 8 | . 8 . Fire 105 | 17 81 7 Melee . | . . . Ram . | . . . Kick . | . . . Crush . | . . . Escape Stasis . | . . . Rewire . | . . . Trap . | . . . Miscellaneous . | . . . Route ------- -11/Scrapyard -10/Materials (discovered 2 exits: *Min x2) -10/Mines History --------- Turn | Location | Event 10 | -11/Scrapyard | Discovered new exit (range 16) 208 | -11/Scrapyard | Entered Materials 316 | -10/Materials | Build established: Mutant 344 | -10/Materials | Identified exit to Mines 728 | -10/Materials | Lost 4 parts (1p2n1u) 1019 | -10/Materials | Core integrity fell below 50% 1299 | -10/Materials | Entered Mines 1300 | -10/Mines | Assembled infested the area 1305 | -10/Mines | Assisted by a Guerilla fighting off Assembled 1308 | -10/Mines | Core integrity fell below 20% 1318 | -10/Mines | Destroyed by as-06315 with Assembled Blade Last Messages --------------- 01300_ ALERT: Infestation in the mines, dispatching Demolisher response squad. 01300_ T-07 Excavator is excavating. 01303_ T1-MGY(h): "I'll hold them off! Go on ahead or try to find another way!" 01303_ T-07 Excavator is excavating. 01304_ HV Slug penetrates Wall. 01305_ A derelict emerges from the shadows: "You need to get out of here! I've been tracking a group of Assembled to figure out where they're coming from, and they're closing on this area, come on!" 01305_ Lgt. Ion Engine destroyed. 01306_ G-34 Mercenary suffers critical hit (Destroy). 01308_ HV Slug penetrates G-34 Mercenary. 01308_ G-34 Mercenary knocked back. 01310_ HV Slug penetrates G-34 Mercenary. 01311_ G-34 Mercenary destroyed. 01313_ T1-MGY(h) Bore Cannon severed. Map ----- +----------------------------------------------------+ | ?????????????????????????????????? | | ?????????????????????????????????? | | ?????????????????????????????????? | | ?????????????????????????????????? | | ?????????????????????????????????? | | ?????????????????????????????????? | | ?????????????????????????????????? | | ?????????????????????????????????? | | ?????????????????????????????????? | | ?????????????????????????????????? | | ?????????????????????????????????? | | ?????????????????????????????????? | | ?????????????????????????????????? | | ?????????????????????????????????? | | ?????????????????????????????????? | | ?????????????????????????????????? | | ?????????????????????????????????? | | ?????????????????????????????????? | | ?????????????????????????????????? | | ?????????????????????????????????? | | ?????????????????????????????????? | | ?????????????????????##??????????? | | ?????????????????????#;a?????????? | | ????????????????????###a######???? | | ????????????????????# aaa #???? | | ????????????????????# % @ #???? | | ??????????????# th % #???? | | ??????????????# t g #???? | | ??????????????# #### #???? | | ????????????????????##### ###???? | | ????????????????????????# #?????? | | ????????????????????????# #?????? | | ????????????????????????# #?????? | | ????????????????????????# ##?????? | | ????????????????????????##???????? | | ?????????????????????????????????? | | ?????????????????????????????????? | | ?????????????????????????????????? | | ?????????????????????????????????? | | ?????????????????????????????????? | | ?????????????????????????????????? | | ?????????????????????????????????? | | ?????????????????????????????????? | | | | | | | | | | | | | | | +----------------------------------------------------+ Best States ------------- Heat Dissipation 25 Energy Generation 10 Energy Capacity 125 Matter Stores 500 Matter Capacity 500 Sight Range 16 Terrain Scan Density 10 Evasion (%) 41 Recoil Reduction 1 Item Schematics ----------------- None Robot Schematics ------------------ None Fabricated ------------ Nothing Repaired ---------- Nothing Studied --------- None Alien Tech Used ----------------- None Achievements -------------- None Challenges ------------ None Game ------ Seed MicroNullInterrupter Manual? 0 Play Time 00:08:48 Cumulative 339.4 hours Start 2025.11.03 @ 00:48:37 End 2025.11.03 @ 00:57:10 Sessions 1 Manual Loads 0 Difficulty Rogue Special Mode None Game No. 300 Rogue 300 Adventurer 0 Explorer 0 Win Type - Total 2 Types 1/1/0/0/0/0/0/0/0/0 Lore% 80 Gallery% 80 Achievement% 52 Wizard Run 0 Options --------- Layout 1 ASCII 0 Keyboard 0 Movement Arrows Keybinds 0 Fullscreen 1 Font 24/Smallcaps Map View 50x35 Zoom Use 0% Tactical HUD 1 Map Filters NONE Filters NONE Steam X RUN: 1b0a6263-0cb0-4843-94cd-49efd143f3ca